[Event "Czech Open-GM 2022"]
[Site "Pardubice"]
[Date "2022.07.28"]
[Round "7.8"]
[White "Savitha Shri B"]
[Black "Tahay, Alexis"]
[Result "1/2-1/2"]
[ECO "B90"]
[WhiteElo "2278"]
[BlackElo "2393"]
[Annotator "TA"]
[PlyCount "83"]
[EventDate "2022.07.22"]
[EventType "swiss"]
[EventCountry "CZE"]
[SourceTitle "playchess.com"]
[Source "ChessBase"]
[SourceQuality "1"]
[TimeControl "40/5400+30:1800+30"]

{[%evp 13,83,15,25,10,18,16,14,0,0,0,0,0,0,-12,0,0,0,0,11,0,1,0,0,-2,8,0,18,23,41,40,52,29,65,57,76,85,99,96,86,91,234,220,229,236,219,206,311,253,359,279,355,359,366,364,364,364,366,358,331,339,322,329,359,352,339,338,351,8,8,8,8,8]} 1. e4 {[%emt 0:02:22]} c5 {[%emt 0:00:06]} 2. Nf3 {[%emt 0:00:13]} d6 {[%emt 0:00:05]} 3. d4 {[%emt 0:00:04]} cxd4 {[%emt 0:00:04]} 4. Nxd4 {[%emt 0:00:04]} Nf6 {[%emt 0:00:06]} 5. Nc3 {[%emt 0:00:06]} a6 {[%emt 0:00:06]} 6. Be3 {[%emt 0:00:05]} e5 {[%emt 0:00:05]} 7. Nb3 {[%emt 0:00:04]} Be6 {[%emt 0:00:14]} 8. h3 {[%emt 0:00:06] B90: Sicilian Najdorf: Unusual White 6th moves, 6 Be3 Ng4 and 6 Be3 e5.} Nbd7 {[%emt 0:01:41]} 9. g4 {[%emt 0:00:43]} b5 {[%emt 0:00:03][%cal Bb7b5,Bb5b4][%mdl 32]} 10. g5 {[%emt 0:03:03]} b4 {[%emt 0:01:18]} 11. Nd5 {[%emt 0:17:33]} Nxd5 {[%emt 0:00:46]} 12. exd5 {[%emt 0:00:10]} Bf5 {[%emt 0:00:04]} 13. Bd3 {[%emt 0:02:58]} Bxd3 {[%emt 0:05:08]} 14. Qxd3 {[%emt 0:00:15]} Be7 {[%emt 0:01:16]} 15. h4 {[%emt 0:01:14]} O-O {[%emt 0:01:58]} 16. O-O-O {[%emt 0:08:54]} a5 {[%emt 0:11:04] [#]} 17. Nd2 $146 {[%emt 0:01:20]} ({Predecessor:} 17. Kb1 Qc7 18. Nd2 Rac8 19. Ne4 Qc4 20. Qxc4 Rxc4 21. Nd2 Rcc8 22. Nb3 Bd8 23. f4 {½-½ (46) Sokolov,A (2497)-Felgendreher,H (2400) Germany 2019}) 17... a4 {[%emt 0:03:28]} 18. Ne4 {[%emt 0:04:13]} Qa5 {[%emt 0:04:51]} 19. Kb1 {[%emt 0:01:50]} Qa6 {[%emt 0:10:30]} 20. Rhg1 {[%emt 0:10:38]} Rfc8 {[%emt 0:06:20]} 21. Rg4 {[%emt 0:05:34]} Qxd3 {[%emt 0:06:44]} 22. Rxd3 {[%emt 0:00:06]} Rab8 {[%emt 0:00:08]} 23. a3 {[%emt 0:10:27] axb4 is the strong threat. White is more active.} Kf8 {[%emt 0:10:49]} 24. Ng3 {[%emt 0:03:11]} g6 {[%emt 0:02:59]} 25. Rxb4 {[%emt 0:05:12]} Rxb4 {[%emt 0:00:15]} 26. axb4 {[%emt 0:00:05]} Rc4 {[%emt 0:00:08]} (26... f5 $16) 27. Rc3 $1 $18 {[%emt 0:00:20]} Rxc3 {[%emt 0:02:24]} 28. bxc3 {[%emt 0:00:39][%cal Bb2c3,Bc3c4,Bc4c5][%mdl 4128] Endgame KBN-KBN} f5 {[%emt 0:00:01] [#] Threatens to win with ...f4.} 29. gxf6 $1 {[%emt 0:04:57]} Nxf6 {[%emt 0:00:41]} (29... Bxf6 $142 30. h5 gxh5) 30. c4 {[%emt 0:02:18] aiming for Ka2.} Ke8 {[%emt 0:03:17]} (30... h5 $142 31. b5 Ke8) 31. Bg5 {[%emt 0:02:10] Black must now prevent Kb2.} Nd7 {[%emt 0:00:01]} 32. Ne4 {[%emt 0:02:54]} Nb6 {[%emt 0:07:07]} 33. Bxe7 {[%emt 0:00:39]} Kxe7 {[%emt 0:00:01] [#] KN-KN} 34. c5 {[%emt 0:02:57]} Nxd5 {[%emt 0:04:24]} 35. cxd6+ {[%emt 0:00:06]} Ke6 {[%emt 0:01:14]} 36. c3 {[%emt 0:03:51]} Nb6 {[%emt 0:03:17]} 37. Ka2 {[%emt 0:02:39]} Nc4 {[%emt 0:03:19]} 38. Ng5+ {[%emt 0:01:55]} Kxd6 {[%emt 0:00:03]} 39. Nxh7 {[%emt 0:00:05]} e4 {[%emt 0:05:36]} 40. Ng5 $2 {[%emt 0:03:51]} (40. Nf8 $18) 40... Ke5 $11 {[%emt 0:05:00]} 41. b5 {[%emt 0:07:00] Strongly threatening Nh7.} Kd5 {[%emt 0:00:29]} 42. Nh3 {[%emt 0:03:38] Weighted Error Value: White=0.19 (very precise) /Black=0.17 (very precise)} 1/2-1/2

[Event "Czech Open-GM 2022"]
[Site "Pardubice"]
[Date "2022.07.28"]
[Round "7.9"]
[White "Aradhya, Garg"]
[Black "Luch, Michal"]
[Result "1/2-1/2"]
[ECO "E46"]
[WhiteElo "2229"]
[BlackElo "2375"]
[Annotator "TA"]
[PlyCount "111"]
[EventDate "2022.07.22"]
[EventType "swiss"]
[EventCountry "CZE"]
[SourceTitle "playchess.com"]
[Source "ChessBase"]
[SourceQuality "1"]
[TimeControl "40/5400+30:1800+30"]

{[%evp 9,111,-2,11,-11,-14,-12,-9,-24,-27,-16,-8,-37,-38,-45,-41,-37,-31,-58,-46,-67,-66,-74,-62,-79,-97,-91,-73,-82,-50,-231,-193,-196,-190,-283,-300,-289,-290,-268,-276,-290,-276,-312,-288,-279,-213,-295,-283,-290,-256,-260,-163,-157,-160,-297,-189,-215,-164,-206,-210,-202,-139,-139,-73,-96,-87,-181,-149,-145,-116,-179,-33,-33,-33,-34,-33,-29,-22,-32,0,-50,-50,-50,-23,-27,-8,-8,-8,-14,-14,-17,-16,-24,0,0,0,0,0,0,0,0,0,0,0,0]} 1. d4 {[%emt 0:00:02]} Nf6 {[%emt 0:00:06]} 2. c4 {[%emt 0:00:05]} e6 {[%emt 0:00:04]} 3. Nc3 {[%emt 0:00:03]} Bb4 {[%emt 0:00:13]} 4. e3 {[%emt 0:06:36]} O-O {[%emt 0:00:08]} 5. Bd2 {[%emt 0:01:09]} c5 {[%emt 0:00:15]} 6. d5 {[%emt 0:01:17] E46: Nimzo-Indian: Rubinstein: 4 e3 0-0 5 Ne2 without early Bd3.} exd5 {[%emt 0:02:01]} 7. cxd5 {[%emt 0:03:15]} d6 {[%emt 0:00:26]} 8. Nge2 {[%emt 0:02:06]} Nbd7 {[%emt 0:07:38]} 9. a3 {[%emt 0:00:58]} Ba5 {[%emt 0:08:50] [#]} 10. Nf4 $146 {[%emt 0:07:25]} ({Predecessor:} 10. Ng3 Ne5 11. Be2 Bd7 12. O-O a6 13. e4 b5 14. b3 Re8 15. f4 Neg4 16. Bxg4 Nxg4 {½-½ (39) Appelquist,O-Nordstrom,E Sweden 1972}) 10... a6 {[%emt 0:21:19]} 11. Be2 {[%emt 0:00:32]} b5 {[%emt 0:03:50]} 12. b4 {[%emt 0:05:14]} Bb6 {[%emt 0:01:58]} (12... cxb4 13. axb4 Bxb4 14. Nxb5 Bxd2+ 15. Qxd2 $11) 13. O-O {[%emt 0:02:01]} Re8 {[%emt 0:12:15]} 14. Qb1 {[%emt 0:11:05]} Bb7 {[%emt 0:03:12]} 15. Rd1 $1 {[%emt 0:04:01]} Rc8 {[%emt 0:00:53]} 16. bxc5 {[%emt 0:07:42]} dxc5 {[%emt 0:05:11]} (16... Nxc5 17. a4 $14) 17. Be1 {[%emt 0:04:52]} Ba5 {[%emt 0:03:13]} 18. d6 {[%emt 0:01:41]} c4 {[%emt 0:12:00]} 19. Nfd5 $2 {[%emt 0:05:12]} (19. a4 $1 $15 b4 20. Ncd5) 19... Bxd5 {[%emt 0:05:47]} 20. Nxd5 {[%emt 0:00:12]} Bxe1 {[%emt 0:01:21]} 21. Ne7+ {[%emt 0:00:41]} (21. Nxf6+ $142 Nxf6 22. Rxe1) 21... Rxe7 $19 {[%emt 0:00:06]} 22. dxe7 {[%emt 0:00:05] [#]} Bxf2+ $1 {[%emt 0:00:02][%mdl 512]} 23. Kxf2 {[%emt 0:00:08]} Qxe7 {[%emt 0:00:01]} 24. Bf3 {[%emt 0:01:52] Prevents Ne4+.} Nc5 {[%emt 0:01:52]} (24... Re8 $2 25. Re1 $19) 25. g3 {[%emt 0:03:47]} Re8 {[%emt 0:05:49] Strongly threatening ...Nfe4+.} 26. Kg2 {[%emt 0:00:36]} Qxe3 {[%emt 0:00:34]} 27. Re1 {[%emt 0:01:27]} Qd2+ {[%emt 0:00:04]} 28. Kh1 {[%emt 0:00:11]} Rxe1+ {[%emt 0:01:18]} 29. Qxe1 {[%emt 0:00:02]} Qxe1+ {[%emt 0:00:06]} 30. Rxe1 {[%emt 0:00:01][%mdl 4096] Endgame KRB-KNN} Kf8 {[%emt 0:00:58]} 31. Bc6 {[%emt 0:00:44]} (31. Kg1 $17 {is a better defense.}) 31... Ne6 {[%emt 0:03:28]} 32. Kg2 {[%emt 0:02:21]} h5 {[%emt 0:00:28] Threatens to win with ...Nd4.} 33. Bb7 {[%emt 0:02:43]} Nc5 {[%emt 0:00:23]} 34. Bc8 {[%emt 0:00:01]} c3 {[%emt 0:00:33] aiming for ...g6.} 35. Bf5 {[%emt 0:00:40]} g6 {[%emt 0:00:35]} ({Black should try} 35... Nb3 $1 {And now ...a5 would win.} 36. Bd3 g6) 36. Bc2 $17 {[%emt 0:00:01]} Ne6 $1 {[%emt 0:00:56]} 37. Bxg6 {[%emt 0:07:48]} Nd4 {[%emt 0:00:17]} (37... fxg6 38. Rxe6 Nd5 39. Kf3 $11) 38. Bd3 {[%emt 0:00:15]} a5 $1 {[%emt 0:00:24] ...b4 is the strong threat.} 39. Rb1 {[%emt 0:01:44] Prevents b4.} (39. Re5 $17 {was necessary.} c2 40. Rc5) 39... Nd5 {[%emt 0:00:27]} (39... Ng4 $19 {White must now prevent ...Kg7.} 40. Kf1 Kg7) 40. Kf2 $1 $15 {[%emt 0:04:29]} b4 {[%emt 0:00:40]} 41. axb4 {[%emt 0:30:47]} axb4 {[%emt 0:05:52]} 42. Bc4 {[%emt 0:00:00] Prevents b3.} Nb6 {[%emt 0:10:24]} 43. Bd3 {[%emt 0:00:00]} (43. Rxb4 $2 c2 44. Rxb6 c1=Q $19) 43... Nd5 {[%emt 0:06:45]} 44. Bc4 {[%emt 0:00:00] Inhibits b3.} c2 {[%emt 0:01:44]} 45. Rc1 {[%emt 0:00:00]} Nb6 {[%emt 0:00:21]} 46. Ba2 {[%emt 0:00:00]} ({Don't blunder} 46. Ke3 $2 Nxc4+ 47. Kxd4 b3 $1 $19) 46... Na4 {[%emt 0:00:26]} 47. Ke3 {[%emt 0:00:00]} Nc3 {[%emt 0:07:11] Pair of Knights!} 48. Bc4 {[%emt 0:00:00] [#]} b3 $1 {[%emt 0:01:22]} 49. Bxb3 {[%emt 0:00:00][%mdl 64] Remove Defender} ({But not} 49. Kxd4 $2 b2 50. Rxc2 {[#]} b1=Q $1 $19) 49... Nxb3 {[%emt 0:00:07]} 50. Rxc2 {[%emt 0:00:00]} Nb5 {[%emt 0:00:39]} 51. Rc4 {[%emt 0:00:00] The position is equal.} Kg7 {[%emt 0:00:51]} 52. Rb4 {[%emt 0:00:00]} N3d4 {[%emt 0:00:07] Hoping for ...Nc2+.} 53. Rxd4 {[%emt 0:00:00]} Nxd4 {[%emt 0:00:02]} 54. Kxd4 {[%emt 0:00:00]} Kf6 {[%emt 0:00:22]} 55. Ke4 {[%emt 0:00:00]} Kg5 {[%emt 0:00:08] ( -> ...Kg4)} 56. Kf3 {[%emt 0:00:00] Whites escaped into a draw.  Weighted Error Value: White=0.22 (precise) /Black=0.20 (precise)} 1/2-1/2

[Event "Czech Open-GM 2022"]
[Site "Pardubice"]
[Date "2022.07.28"]
[Round "7.11"]
[White "Lokander, Martin"]
[Black "Nurkiewicz, Maciej"]
[Result "0-1"]
[ECO "D85"]
[WhiteElo "2483"]
[BlackElo "2332"]
[Annotator "TA"]
[PlyCount "112"]
[EventDate "2022.07.22"]
[EventType "swiss"]
[EventCountry "CZE"]
[SourceTitle "playchess.com"]
[Source "ChessBase"]
[SourceQuality "1"]
[TimeControl "40/5400+30:1800+30"]

{[%evp 19,112,15,13,6,10,4,11,12,14,8,12,-2,0,-17,-15,-36,-35,-50,-54,-75,-75,-88,-82,-77,-73,-127,-94,-103,-94,-179,-106,-105,-109,-106,-55,-55,-55,-79,-79,-106,-103,-123,-123,-123,-123,-123,-123,-123,-123,-123,-123,-123,-123,-123,-123,-123,-123,-123,-123,-123,-123,-123,-123,-123,0,-112,-56,-56,-56,-56,-55,-53,0,-748,-693,-29962,-29963,-29972,-29974,-29977,-29978,-29978,-29979,-29979,-29980,-29981,-29982,-29982,-29983,-29983,-29984,-29984,-29985,-29985,-29985]} 1. d4 Nf6 2. c4 g6 3. Nc3 d5 4. cxd5 Nxd5 5. e4 Nxc3 6. bxc3 Bg7 7. Nf3 c5 8. Bb5+ Nc6 9. O-O cxd4 10. cxd4 O-O {[%cal Rc6d4]} 11. Bxc6 {D85: Exchange Grünfeld: Unusual White 7th moves and lines with 7 Nf3.} bxc6 12. Qc2 Bxd4 13. Nxd4 {The position is equal.} Qxd4 14. Bb2 Qb4 {[#]} 15. Bc3 $146 {[%emt 0:09:51][%mdl 1024] White has compensation.} ({Predecessor:} 15. Rfb1 Qa5 16. Qxc6 Be6 17. Bc3 Qg5 18. Qb5 Qxb5 19. Rxb5 Rfc8 20. Bb4 Rab8 21. Rxb8 Rxb8 {½-½ (65) Baidetsky,V (2435)-Schernthaner,D (2279) Graz 2022}) 15... Qc4 {[%emt 0:36:10]} 16. Qb2 {[%emt 0:27:03]} Be6 {[%emt 0:05:06]} 17. Qa3 {[%emt 0:00:06]} Rfd8 {[%emt 0:11:06]} 18. Rad1 {[%emt 0:04:46] And now Rxd8+ would win.} c5 {[%emt 0:09:42]} 19. Ba1 {[%emt 0:05:35]} Rxd1 {[%emt 0:06:31]} 20. Rxd1 {[%emt 0:00:05]} f6 {[%emt 0:00:23][%cal Bf7f6,Bf6f5][%mdl 32]} (20... Qc2 {is interesting.} 21. Qc1 Qxc1 22. Rxc1 Rb8) 21. e5 {[%emt 0:03:12]} f5 {[%emt 0:01:48]} 22. h4 {[%emt 0:01:54]} (22. h3 $142) 22... a5 {[%emt 0:04:29]} 23. Rc1 {[%emt 0:01:15]} Qxa2 {[%emt 0:01:17]} 24. Qe3 {[%emt 0:00:22]} (24. Qxc5 $17 Rc8 25. Qe3) 24... Rb8 {[%emt 0:00:57]} (24... a4 $19 {...a3 is the strong threat.} 25. h5 g5 26. Qxc5 Kf7) 25. Qxc5 {[%emt 0:02:00]} Rb1 {[%emt 0:10:06] Black is more active.} 26. Bd4 {[%emt 0:00:42]} a4 {[%emt 0:04:11]} (26... Kf7 $17 27. Be3 Rb7) 27. Be3 $15 {[%emt 0:01:34]} Rxc1+ {[%emt 0:01:12]} 28. Bxc1 {[%emt 0:00:09]} Qc4 {[%emt 0:06:11]} 29. Qxc4 {[%emt 0:01:32]} Bxc4 $17 {[%emt 0:00:07][%mdl 4096] Endgame KB-KB} 30. f4 {[%emt 0:00:03]} Kf7 {[%emt 0:00:13]} 31. Kf2 {[%emt 0:00:04]} Ke6 {[%emt 0:00:08]} 32. Ba3 {[%emt 0:00:16]} Kd5 {[%emt 0:01:03]} 33. Bxe7 {[%emt 0:00:51]} Ke4 {[%emt 0:00:17]} 34. g3 {[%emt 0:01:28]} Kd3 {[%emt 0:02:45]} 35. Bf8 {[%emt 0:04:05]} Bf7 {[%emt 0:00:14]} 36. Be7 {[%emt 0:01:00]} Bg8 {[%emt 0:00:41]} 37. Bf8 {[%emt 0:00:12]} Be6 {[%emt 0:00:09]} 38. Be7 {[%emt 0:00:07]} Bd5 {[%emt 0:00:06]} 39. Bf8 {[%emt 0:00:04]} Bb3 {[%emt 0:00:09]} 40. Be7 {[%emt 0:00:27]} Bf7 {[%emt 0:00:11]} 41. Bf8 {[%emt 0:30:06]} Bb3 {[%emt 0:11:41]} ({Black should play} 41... Kd2 $17) 42. Ba3 {[%emt 0:00:00] [#]} (42. Be7 $1 $11 {was the only way to keep the balance.}) 42... Kc3 {[%emt 0:04:25]} (42... Kd2 $1 $17) 43. Ke3 $15 {[%emt 0:00:00]} Bc4 {[%emt 0:00:41]} 44. Be7 {[%emt 0:00:00]} Kb2 {[%emt 0:01:47] Strongly threatening ...a3.} 45. Kd4 {[%emt 0:00:00]} Bb3 {[%emt 0:00:10]} (45... Kb3 $15) 46. Bb4 $2 {[%emt 0:00:00][%mdl 8192]} (46. e6 $11) 46... a3 $19 {[%emt 0:00:35] aiming for ...a2.} 47. Bxa3+ {[%emt 0:00:00]} Kxa3 {[%emt 0:00:02] KB-KP. Black mates.} 48. Kc5 {[%emt 0:00:00]} Kb2 {[%emt 0:00:08]} 49. Kd6 {[%emt 0:00:00]} Kc3 {[%emt 0:00:07]} 50. Ke7 {[%emt 0:00:00]} Kd4 {[%emt 0:03:08]} 51. Kf6 {[%emt 0:00:00]} Ke4 {[%emt 0:00:06]} 52. Kg7 {[%emt 0:00:00]} Kf3 {[%emt 0:00:06]} 53. Kxh7 {[%emt 0:00:00]} Kxg3 {[%emt 0:00:04]} 54. Kxg6 {[%emt 0:00:00]} Kxf4 {[%emt 0:00:06]} 55. Kf6 {[%emt 0:00:00] [#]} Bd1 $1 {[%emt 0:00:07]} 56. e6 {[%emt 0:00:00]} Bh5 {[%emt 0:00:06] Weighted Error Value: White=0.44/Black=0.09 (flawless)} 0-1

[Event "Czech Open-GM 2022"]
[Site "Pardubice"]
[Date "2022.07.28"]
[Round "7.12"]
[White "Bhambure, Shantanu"]
[Black "Haring, Filip"]
[Result "0-1"]
[ECO "D37"]
[WhiteElo "2320"]
[BlackElo "2451"]
[Annotator "TA"]
[PlyCount "150"]
[EventDate "2022.07.22"]
[EventType "swiss"]
[EventCountry "CZE"]
[SourceTitle "playchess.com"]
[Source "ChessBase"]
[SourceQuality "1"]
[TimeControl "40/5400+30:1800+30"]

{[%evp 9,150,11,0,22,4,0,0,12,0,0,0,5,85,81,94,35,27,26,34,12,0,0,0,0,-12,-35,-31,-34,-23,-34,-33,-33,-35,-37,-34,-38,-33,-44,-38,-36,-17,-17,-21,-33,-22,-21,-25,-26,-14,-23,-18,-56,-52,-57,-54,-53,-41,-60,-43,-109,-110,-123,-134,-137,0,-100,0,-141,-139,-139,-141,-136,-138,-170,-172,-165,-162,-277,-270,-658,-744,-563,-543,-854,-760,-4609,-4087,-4103,-6319,-2616,-1824,-29947,-29951,-29964,-29958,-29955,-29953,-29951,-29952,-29964,-29965,-29964,-29946,-29972,-29973,-29973,-29974,-29973,-29974,-29974,0,-1601,-8,-8,0,0,0,-8,-8,-8,-8,-8,0,0,0,-8,-8,-29977,-29978,-29978,-29979,-29978,-29980,-29980,-29981,-29981,-29982,-29982,-29983,-29984,-29985,-29986,-29987]} 1. d4 {[%emt 0:00:05]} Nf6 {[%emt 0:00:06]} 2. c4 {[%emt 0:00:06][%cal Bc2c4,Bc4c5,Bc5b6][%mdl 32]} e6 {[%emt 0:00:06]} 3. Nf3 {[%emt 0:00:05]} d5 {[%emt 0:00:50]} 4. Nc3 {[%emt 0:00:08]} a6 {[%emt 0:00:34]} 5. c5 {[%emt 0:00:14]} b6 {[%emt 0:02:17]} 6. cxb6 {[%emt 0:00:10] D37: Queen's Gambit Declined: 5 Bf4.} c5 {[%emt 0:02:28]} 7. Bf4 {[%emt 0:02:50] Hoping for Bc7.} Bd6 {[%emt 0:19:16] Against Bc7} 8. Bxd6 {[%emt 0:00:52] The position is equal.} Qxd6 {[%emt 0:00:20]} 9. dxc5 {[%emt 0:00:40]} Qxc5 {[%emt 0:00:48]} 10. Qd4 {[%emt 0:00:24]} Qxd4 {[%emt 0:17:25]} (10... Qd6 $11) 11. Nxd4 $16 {[%emt 0:00:07]} e5 {[%emt 0:00:10]} 12. Nf3 {[%emt 0:28:37] [#]} (12. Nb3 $1 $16) 12... Nbd7 $146 {[%emt 0:00:36]} ({Predecessor:} 12... d4 13. Na4 Nbd7 14. g3 Bb7 15. Bg2 Rb8 16. Rc1 O-O 17. O-O Bd5 18. b3 Rfe8 {1-0 (46) Mishra,A (2354)-Sarkar,J (2366) Charlotte 2021}) 13. e3 {[%emt 0:01:33]} Rb8 $1 {[%emt 0:01:47]} 14. Na4 {[%emt 0:04:31]} Ke7 {[%emt 0:07:27]} 15. Rc1 {[%emt 0:11:07]} Kd6 {[%emt 0:02:29]} 16. Be2 {[%emt 0:07:11]} Nxb6 {[%emt 0:04:18]} 17. Nxb6 {[%emt 0:04:56]} Rxb6 {[%emt 0:00:05]} 18. b3 {[%emt 0:00:12]} Bd7 {[%emt 0:05:41]} 19. O-O {[%emt 0:01:32]} Bb5 {[%emt 0:14:24]} 20. Rfe1 {[%emt 0:05:10]} Ne4 {[%emt 0:00:21]} 21. Kf1 {[%emt 0:02:14]} Rbb8 {[%emt 0:01:52]} 22. Rc2 {[%emt 0:00:48]} Rhc8 {[%emt 0:01:24]} 23. Rec1 {[%emt 0:00:25]} Rxc2 {[%emt 0:00:07] Active counter play!} 24. Rxc2 {[%emt 0:00:04]} a5 {[%emt 0:01:30]} 25. Bxb5 {[%emt 0:01:07]} Rxb5 $11 {[%emt 0:00:05][%mdl 4096] Endgame KRN-KRN} 26. Ke2 {[%emt 0:00:35]} Rb8 {[%emt 0:05:15]} 27. Ne1 {[%emt 0:05:28]} a4 {[%emt 0:03:04]} 28. bxa4 {[%emt 0:00:24]} Nc5 {[%emt 0:01:07]} 29. a5 {[%emt 0:02:14]} e4 {[%emt 0:00:35]} 30. Kd2 {[%emt 0:04:57]} Rb5 {[%emt 0:00:44]} 31. Kc1 {[%emt 0:07:22]} Rxa5 {[%emt 0:00:35]} 32. Rb2 {[%emt 0:00:40]} f5 {[%emt 0:01:14][%cal Bf7f5,Bf5f4][%mdl 32]} 33. h4 {[%emt 0:00:21]} Ke5 {[%emt 0:00:59]} 34. Rd2 {[%emt 0:01:34]} (34. f4+ $15 Kd6 35. g3) 34... f4 $1 $17 {[%emt 0:03:06]} 35. Kb2 {[%emt 0:02:25]} Rb5+ {[%emt 0:01:24]} 36. Kc1 {[%emt 0:01:07]} Ra5 {[%emt 0:01:24]} 37. Kb2 $1 {[%emt 0:01:19]} Rb5+ {[%emt 0:00:35]} 38. Kc1 $1 {[%emt 0:00:16]} g6 $1 {[%emt 0:01:06]} 39. Rb2 {[%emt 0:01:30]} Ra5 {[%emt 0:00:36]} 40. Rd2 {[%emt 0:01:04]} h6 {[%emt 0:01:36][%cal Bh7h6,Bh6h5][%mdl 32]} 41. Kd1 {[%emt 0:31:13]} fxe3 {[%emt 0:07:16]} 42. fxe3 {[%emt 0:00:00]} Ra3 {[%emt 0:00:04]} 43. Nc2 {[%emt 0:00:00]} (43. Ke2 $142) 43... Rxa2 $19 {[%emt 0:02:14]} 44. Nb4 $2 {[%emt 0:00:00]} (44. h5 gxh5 45. g3) 44... Rxd2+ {[%emt 0:00:53]} 45. Kxd2 {[%emt 0:00:00] KN-KN} h5 {[%emt 0:03:48] Strongly threatening ...Ne6.} 46. Ke2 {[%emt 0:00:00]} Ne6 {[%emt 0:01:19]} 47. g3 {[%emt 0:00:00]} Ng7 {[%emt 0:00:40]} 48. Kf2 {[%emt 0:00:00]} Nf5 {[%emt 0:01:31]} 49. Nc2 {[%emt 0:00:00]} d4 {[%emt 0:02:17]} 50. exd4+ {[%emt 0:00:00]} Kd5 {[%emt 0:03:04]} 51. Kg2 {[%emt 0:00:00]} Kc4 {[%emt 0:05:29]} 52. d5 {[%emt 0:00:00]} Kxd5 {[%emt 0:01:29]} 53. Kf2 {[%emt 0:00:00]} Kc4 {[%emt 0:00:37]} 54. Ne1 {[%emt 0:00:00]} Kd4 {[%emt 0:01:16]} 55. Ng2 {[%emt 0:00:00]} e3+ {[%emt 0:03:22]} 56. Kf3 {[%emt 0:00:00] [#]} Kd3 $1 {[%emt 0:00:03]} 57. Nf4+ {[%emt 0:00:00]} Kd2 {[%emt 0:00:11]} 58. Ne2 {[%emt 0:00:00]} Nh6 {[%emt 0:01:55]} 59. Nd4 {[%emt 0:00:00] [#]} Kd3 $2 {[%emt 0:01:25]} (59... Ng4 $1 {mates} 60. Nb3+ Ke1 61. Nd4 Kd1 62. Nb5 Kd2 63. Nd4 Ne5+ 64. Ke4 e2 65. Nxe2 Kxe2 66. Kxe5 Kf3 67. Kf6 Kxg3 68. Kg5 Kh3 69. Kf6 Kxh4 70. Ke5 Kg3 71. Ke6 h4 72. Ke7 h3 73. Kf6 h2 74. Ke7 h1=Q 75. Kd6 Kf4 76. Kc5 Qb7 77. Kc4 Qc6+ 78. Kd4 Qb5 79. Kc3 Ke3 80. Kc2 Qb4 81. Kc1 Kd3 82. Kd1 Qd2#) 60. Nb3 $2 {[%emt 0:00:00][%mdl 8192]} (60. Ne6 $11) 60... Ng4 $2 {[%emt 0:00:25]} ({Black should play} 60... Nf5 $19 {( -> ...Nd4+)} 61. Nc5+ Kd2 62. Ne4+ Kd1) 61. Nc5+ $11 {[%emt 0:00:00]} Kc4 {[%emt 0:01:09]} 62. Ne6 {[%emt 0:00:00]} Kd3 {[%emt 0:00:03]} (62... Kd5 $5 {[%cal Rd5e6]} 63. Nf4+ Kd4 $11) 63. Nc5+ {[%emt 0:00:00]} Kd2 {[%emt 0:00:17]} 64. Ne4+ {[%emt 0:07:07]} Kd1 {[%emt 0:00:11]} (64... Kc1 $5 65. Ke2 Kc2 $11) 65. Nc3+ {[%emt 0:00:58]} Kc2 {[%emt 0:00:14]} 66. Ne4 $1 {[%emt 0:01:04]} Kd1 {[%emt 0:00:04]} 67. Nc3+ {[%emt 0:00:07]} Ke1 {[%emt 0:00:04]} 68. Ne2 $2 {[%emt 0:04:36][%mdl 8192] This move loses the game for White.} (68. Ne4 $11 e2 69. Nc3 Nh2+ 70. Kf4) 68... Kd2 {[%emt 0:00:12] Black mates.} 69. Nf4 {[%emt 0:01:17]} Ne5+ {[%emt 0:00:41]} 70. Ke4 {[%emt 0:00:11]} e2 {[%emt 0:01:12]} 71. Ng2 {[%emt 0:01:03]} Nd3 {[%emt 0:00:32]} 72. Kd5 {[%emt 0:00:36]} e1=Q {[%emt 0:00:42]} 73. Nxe1 {[%emt 0:00:03]} Kxe1 {[%emt 0:00:05]} 74. Ke6 {[%emt 0:00:07]} Kf2 {[%emt 0:00:05]} 75. Kf6 {[%emt 0:00:09]} Kxg3 {[%emt 0:00:06] Weighted Error Value: White=0.43/Black=0.27 (precise)} 0-1

[Event "Czech Open-GM 2022"]
[Site "Pardubice"]
[Date "2022.07.28"]
[Round "7.13"]
[White "Dixit, Nikhil"]
[Black "Lalic, Bogdan"]
[Result "1/2-1/2"]
[ECO "B27"]
[WhiteElo "2325"]
[BlackElo "2412"]
[Annotator "TA"]
[PlyCount "30"]
[EventDate "2022.07.22"]
[EventType "swiss"]
[EventCountry "CZE"]
[SourceTitle "playchess.com"]
[Source "ChessBase"]
[SourceQuality "1"]
[TimeControl "40/5400+30:1800+30"]

{[%evp 9,30,-17,0,-11,-13,-19,-19,-19,-21,-13,-17,-14,-14,-39,-38,-25,-18,-43,-19,-31,-22,-24,-4]} 1. e4 {[%emt 0:04:19]} c5 {[%emt 0:00:07]} 2. Nf3 {[%emt 0:00:06]} g6 {[%emt 0:00:07]} 3. d4 {[%emt 0:00:39]} cxd4 {[%emt 0:00:08]} 4. Qxd4 {[%emt 0:00:04]} Nf6 {[%emt 0:00:08]} 5. Bb5 {[%emt 0:00:21]} a6 {[%emt 0:00:11]} 6. Ba4 {[%emt 0:00:13] B27: Sicilian: 2 Nf3, unusual Black 2nd moves.} b5 $1 {[%emt 0:00:08]} ({Don't take} 6... Nc6 7. Bxc6 bxc6 8. e5 $14) 7. Bb3 {[%emt 0:00:07] [#] Strongly threatening e5.} Nc6 {[%emt 0:00:15]} 8. Qd3 {[%emt 0:01:06] The position is equal.} Bg7 {[%emt 0:01:36]} 9. O-O {[%emt 0:01:35]} O-O {[%emt 0:00:49]} 10. Nc3 {[%emt 0:01:11]} d6 {[%emt 0:00:19] is the legacy move (10...Bb7).} 11. h3 {[%emt 0:00:27]} Bb7 {[%emt 0:01:21] [#]} 12. Re1 $146 {[%emt 0:02:21]} ({Predecessor:} 12. a3 Rc8 13. Re1 Nd7 14. Ba2 Nce5 15. Nxe5 Nxe5 16. Qg3 Nc4 17. Nd1 a5 18. c3 {½-½ (46) Birnboim,N (2369)-Jimenez Molina,J (2174) Prague 2020}) 12... Na5 {[%emt 0:03:13]} 13. Nd5 {[%emt 0:07:48]} Rc8 {[%emt 0:02:49]} (13... Nd7 $5 {[%cal Rd7c5]}) 14. c3 {[%emt 0:04:16]} Nxd5 {[%emt 0:03:19]} 15. Bxd5 {[%emt 0:00:45]} Qc7 {[%emt 0:00:56] Weighted Error Value: White=0.05 (flawless) /Black=0.04 (flawless)} 1/2-1/2